Cogmind - Beta 9.1 @@@ ROGUE MODE // 2019.11.11 @ 11:54:02 Player: kiedra Result: Destroyed by H-77 Assassin with Coil Gun Performance ------------- Evolutions (7) 3500 Regions Visited (27) 5400 Robots Destroyed (462) 2310 Value Destroyed (21681) 21681 Prototype IDs (54) 1080 Alien Tech Used (8) 1600 Bonus (10697) 10697 TOTAL SCORE: 46268 Bonus ------- High Alert Combat Kills 1270 Follower Combat Kills 2819 Met Data Miner 300 Met Imprinter 300 Met Zhirov 300 Met Warlord at Base 500 MAIN.C Attacked Warlord 500 Warlord Defense Kill 534 Built Enhanced Grunts 300 Met R17 at Cetus 500 Read Decrypted Archives 300 Used Core Reset Matrix 3000 Scanned by Researcher 500 Pursued by Intercept 500 Friendly Fire -926 Cogmind --------- Core Integrity 0/1300 Matter 127/300 Energy 91/100 System Corruption 16% Temperature Cool (0) Location -3/Section 7 Parts ------- Power (2) Propulsion (4) Utility (13) Experimental Signal Interpreter Advanced Targeting Computer Advanced Hacking Suite Weapon (3) Inventory (4) Core Stripper Sigix Broadsword Peak State ------------ Power Particle Reactor Improved Quantum Reactor Propulsion Armored Heavy Treads Armored Heavy Treads Utility Advanced Cooling System High-capacity Storage Unit High-capacity Storage Unit High-capacity Storage Unit High-capacity Storage Unit Experimental Sensor Array Experimental Signal Interpreter Experimental Targeting Computer Experimental Armor Integrity Analyzer Phase Armor Advanced Hacking Suite Advanced Hacking Suite Weapon Improved KE Penetrator Sigix Broadsword Inventory Vortex Chain Reactor Armored Medium Treads Armored Medium Treads Armored Medium Treads Advanced Heat Sink Advanced Energy Well Matter Compressor Advanced Targeting Computer Advanced Particle Charger Quantum Capacitor Centrium Medium Armor Plating Centrium Medium Armor Plating Force Field Improved System Restoration Module Dimensional Node Initializer Transdimensional Reconstructor Gamma Rifle Gamma Rifle Gamma Rifle Gamma Rifle Gamma Rifle Gamma Rifle Enhanced Gamma Rifle KE Penetrator Improved KE Penetrator Improved KE Penetrator Improved KE Penetrator Multirail Proton Missile Launcher Micro-nuke Launcher Sigix Terminator Core Stripper [Rating: 195] Favorites ----------- Power Reinforced Fission Core Engine Cooled Deuterium Engine Power Core Reinforced Fission Core Reactor Antimatter Reactor Propulsion Armored Treads Treads Armored Treads Leg Enhanced Flexi-carbon Leg Hover Unit Antigrav System Utility High-capacity Storage Unit Device Experimental Sensor Array Storage High-capacity Storage Unit Processor Experimental Signal Interpreter Hackware Advanced Hacking Suite Protection Hardened Medium Armor Plating Artifact Phase Armor Weapon EM Pulse Cannon Energy Gun Gamma Rifle Energy Cannon EM Pulse Cannon Ballistic Gun Enhanced Autogun Ballistic Cannon Assault Cannon Launcher Shock Bomb Launcher Impact Weapon Core Stripper Slashing Weapon Makeshift Sword Build | -11 -10 -9 -9 -8 -7 -7 -7 -7 -6 -6 -6 -6 -6 -5 -5 -5 -5 -5 -4 -4 -4 -4 -4 -4 -3 -3 -3 ------- Run | Scr Mat Mat Sto Mat Fac Low Low Zio Pro Fac Low Low Dat Pro Fac Upp Upp War Pro Fac Ext Cet Arc Hub Res Qua Sec Slots Evolved 14 | . . 2 . 2 2 . . . . 2 . . . . 2 . . . . 2 . . . . 2 . . Power 1 | . . . . . . . . . . . . . . . 1 . . . . . . . . . . . . Propulsion 1 | . . . . 1 . . . . . . . . . . . . . . . . . . . . . . . Utility 11 | . . 1 . 1 2 . . . . 2 . . . . 1 . . . . 2 . . . . 2 . . Weapon 1 | . . 1 . . . . . . . . . . . . . . . . . . . . . . . . . Parts Attached 672 | 7 18 30 16 33 36 5 3 1 13 55 8 4 . 7 36 . 9 11 2 60 12 17 1 9 56 128 95 Power 41 | 1 1 3 4 3 3 . . . . 1 . . . . 5 . . 2 . 2 1 2 . . 3 9 1 Engine 14 | 1 1 3 4 3 2 . . . . . . . . . . . . . . . . . . . . . . Core 12 | . . . . . 1 . . . . 1 . . . . 5 . . 2 . . 1 . . . . 2 . Reactor 15 | . . . . . . . . . . . . . . . . . . . . 2 . 2 . . 3 7 1 Propulsion 59 | 2 2 3 2 6 4 . . . . 1 . 1 . 3 4 . 2 2 . 7 . 2 . 4 8 2 4 Treads 54 | 2 2 3 2 6 4 . . . . 1 . 1 . 2 3 . 2 2 . 5 . 2 . 4 7 2 4 Leg 1 | . . . . . . . . . . . . . . 1 . . . . . . . . . . . . . Wheel . | . . . . . . . . . . . . . . . . . . . . . . . . . . . . Hover 4 | . . . . . . . . . . . . . . . 1 . . . . 2 . . . . 1 . . Flight . | . . . . . . . . . . . . . . . . . . . . . . . . . . . . Utility 220 | 1 3 6 2 3 11 . . 1 1 14 4 1 . 2 12 . 2 7 . 13 6 3 1 5 17 55 50 Device 130 | . . 1 1 . 4 . . 1 . 7 3 . . 1 9 . 1 3 . 9 3 2 . 3 11 34 37 Storage 19 | 1 3 4 1 1 1 . . . . 1 . . . 1 . . . . . . 1 . . . . 4 1 Processor 19 | . . . . . 2 . . . . 2 . . . . 1 . . 1 . 1 . . . . . 6 6 Hackware 2 | . . . . . . . . . . . . . . . . . . . . . . . . . 2 . . Protection 48 | . . 1 . 2 4 . . . 1 4 1 1 . . 2 . 1 3 . 3 2 1 1 2 4 9 6 Artifact 2 | . . . . . . . . . . . . . . . . . . . . . . . . . . 2 . Weapon 352 | 3 12 18 8 21 18 5 3 . 12 39 4 2 . 2 15 . 5 . 2 38 5 10 . . 28 62 40 Energy Gun 90 | 3 2 11 . . . . . . . . . . . . . . . . . . . 1 . . 14 36 23 Energy Cannon 95 | . . 2 3 . . . . . 6 26 4 1 . 1 13 . 3 . 1 28 1 2 . . 1 1 2 Ballistic Gun 93 | . 7 2 2 14 10 2 2 . 3 6 . . . . 2 . . . . 5 2 6 . . 11 13 6 Ballistic Cannon 7 | . 1 1 1 . . . . . . . . . . . . . . . . 1 . . . . . 2 1 Launcher 25 | . 2 2 . 3 . 2 1 . 3 . . 1 . 1 . . 2 . 1 4 2 . . . . . 1 Special Weapon . | . . . . . . . . . . . . . . . . . . . . . . . . . . . . Impact Weapon 3 | . . . . . . . . . . . . . . . . . . . . . . . . . . 3 . Slashing Weapon 39 | . . . 2 4 8 1 . . . 7 . . . . . . . . . . . 1 . . 2 7 7 Piercing Weapon . | . . . . . . . . . . . . . . . . . . . . . . . . . . . . Special Melee Weapon . | . . . . . . . . . . . . . . . . . . . . . . . . . . . . Unidentified Prototypes 45 | . . 3 1 1 2 . . . . 1 . 1 . 2 2 . . 3 . 1 1 3 . . 2 20 2 Parts Lost 78 | . 7 5 3 3 1 . . . 1 4 . . . 1 8 . 2 . . 8 1 . . 1 7 7 19 Power 8 | . 1 1 1 . . . . . . . . . . . 2 . . . . . . . . . 1 1 1 Propulsion 12 | . 2 1 . . . . . . . . . . . 1 2 . . . . 3 . . . . . . 3 Utility 26 | . . . . 1 . . . . 1 2 . . . . 1 . 1 . . 2 1 . . 1 3 3 10 Weapon 32 | . 4 3 2 2 1 . . . . 2 . . . . 3 . 1 . . 3 . . . . 3 3 5 Highest Loss Streak 16 | . 5 3 2 1 1 . . . 1 1 . . . 1 3 . 2 . . 2 1 . . 1 3 2 16 Average Slot Usage (%) 97 | . 92 99 99 99 100 100 100 99 99 99 100 99 100 99 99 100 98 94 94 97 99 91 90 96 95 87 82 Engine 3 | . 14 11 10 9 4 7 7 7 7 4 . . . . . . . . . . . . . . . . . Core 3 | . . . . . 2 . . . . 1 6 6 6 6 10 11 11 11 11 5 5 5 5 5 4 1 . Reactor 1 | . . . . . . . . . . . . . . . . . . . . 4 5 5 5 5 3 5 3 Treads 19 | . 28 22 21 26 23 23 23 23 23 20 20 24 25 24 21 22 20 16 16 17 20 11 10 16 14 9 8 Device 12 | . . 9 11 8 8 7 7 6 7 13 14 12 12 11 17 16 16 16 16 18 15 18 20 15 14 12 15 Storage 18 | . 21 22 22 23 23 23 23 23 23 20 20 18 18 18 16 16 16 16 16 15 15 15 15 15 13 17 17 Processor 9 | . . . . . 7 7 7 7 7 13 13 12 12 12 11 11 11 11 11 15 15 15 15 15 13 13 13 Hackware 1 | . . . . . . . . . . . . . . . . . . . . . . . . . 8 9 5 Protection 5 | . . 1 . 3 6 7 7 7 7 5 4 5 6 6 3 5 4 4 5 5 9 6 5 9 6 3 3 Energy Gun 2 | . 15 29 5 . . . . . . . . . . . . . . . . . . . . . 4 7 7 Energy Cannon 4 | . . . 20 . . . . . 6 12 13 12 12 11 10 11 10 11 11 7 . 3 . . . 1 . Ballistic Gun 8 | . 10 2 1 23 22 22 22 23 15 2 . . . . . . . . . 2 9 5 10 10 4 2 4 Slashing Weapon 2 | . . . . . . . . . . 3 6 6 6 6 5 5 5 5 5 5 5 5 5 5 3 . . Naked Turns . | . . . . . . . . . . . . . . . . . . . . . . . . . . . . Heaviest Build 208 | 13 49 84 87 123 126 128 128 130 138 140 135 133 131 133 143 133 134 162 162 172 168 176 170 180 182 208 203 Greatest Support 180 | 40 40 44 44 62 68 68 68 68 68 68 68 88 68 68 103 103 118 125 124 124 103 160 160 160 120 180 180 Greatest Overweight (x) 5 | 2 1 3 3 5 2 1 1 1 2 2 1 1 1 1 2 1 2 1 1 1 1 1 1 1 1 1 1 Average Overweight (x) 1 | . . 1 1 1 1 1 1 1 1 1 1 1 1 1 1 1 1 1 1 1 1 1 1 1 1 1 . Largest Inventory Capacity 36 | 6 16 20 20 28 28 28 28 28 28 28 28 28 28 28 28 28 28 28 28 28 28 28 28 28 28 36 36 Average Capacity 27 | 5 9 18 20 25 28 28 28 28 28 28 28 28 28 28 28 28 28 28 28 28 28 28 28 28 28 35 35 Most Carried 36 | 4 10 20 20 28 28 28 28 28 28 28 28 28 28 28 28 25 28 28 28 28 28 28 28 28 28 36 36 Average Carried 26 | 2 6 17 19 22 27 28 28 27 27 26 28 27 28 27 27 25 26 27 28 26 27 27 28 27 27 33 33 Final Capacity 36 | 6 16 20 20 28 28 28 28 28 28 28 28 28 28 28 28 28 28 28 28 28 28 28 28 28 28 36 4 Final Carried 35 | 4 8 20 18 26 28 28 28 28 26 28 28 28 28 28 25 25 28 28 28 28 28 28 28 27 23 35 4 Class Distribution -------------------- 29% | Hauler-Mutant 22% | Hauler-Skirmisher 17% | Scavenger-Mutant 17% | Hauler-Assassin 6% | Hauler-Gunner Dominant Class ---------------- Mutant | -10/Materials Hauler-Gunner | -9/Materials Hauler-Gunner | -9/Storage Hauler-Gunner | -8/Materials Hauler-Skirmisher | -7/Factory Hauler-Skirmisher | -7/Lower Caves Hauler-Skirmisher | -7/Lower Caves Hauler-Skirmisher | -7/Zion Hauler-Skirmisher | -6/Proximity Caves Hauler-Assassin | -6/Factory Hauler-Assassin | -6/Lower Caves Hauler-Assassin | -6/Lower Caves Hauler-Assassin | -6/Data Miner Hauler-Assassin | -5/Proximity Caves Hauler-Assassin | -5/Factory Hauler-Mutant | -5/Upper Caves Hauler-Mutant | -5/Upper Caves Hauler-Mutant | -5/Warlord Hauler-Mutant | -4/Proximity Caves Hauler-Mutant | -4/Factory Scavenger-Mutant | -4/Extension Scavenger-Mutant | -4/Cetus Scavenger-Mutant | -4/Archives Scavenger-Mutant | -4/Hub_04(d) Scavenger-Mutant | -3/Research Hauler-Mutant | -3/Quarantine Hauler-Mutant | -3/Section 7 Resources | -11 -10 -9 -9 -8 -7 -7 -7 -7 -6 -6 -6 -6 -6 -5 -5 -5 -5 -5 -4 -4 -4 -4 -4 -4 -3 -3 -3 ----------- Run | Scr Mat Mat Sto Mat Fac Low Low Zio Pro Fac Low Low Dat Pro Fac Upp Upp War Pro Fac Ext Cet Arc Hub Res Qua Sec Matter Collected 12163 | 239 267 586 211 1254 1266 231 283 10 229 871 50 110 . 85 296 42 95 120 35 896 370 290 . 679 1028 1639 981 Remotely 10 | . . . . . . . . . . . . . . . . . . . . . . . . . . . 10 Salvage Created 23708 | 69 623 1417 1128 1505 1616 29 257 . 421 1689 117 58 . 272 1025 185 531 309 346 2251 801 329 . 1392 2401 2716 2221 Parts 1188 | 2 38 103 71 73 98 5 14 . 20 76 6 6 . 7 36 9 19 9 13 110 41 12 . 64 145 110 101 Haulers Intercepted 22 | . 1 3 5 4 3 . . . . 1 . . . . 1 . . . . 2 . . . 1 . . 1 Recyclers Shooed 9 | . . . . . 2 . . . . 2 . . . . . . . . . . 2 . . . 3 . . Parts Field Recycled . | . . . . . . . . . . . . . . . . . . . . . . . . . . . . Retrieved Matter . | . . . . . . . . . . . . . . . . . . . . . . . . . . . . Parts Self-Destructed 128 | . . . . . . 4 13 1 16 . 5 4 . 3 . 6 4 67 5 . . . . . . . . Prevented 44 | . . . . . . 3 . . 2 . 6 1 . . . 3 10 12 7 . . . . . . . . Kills | -11 -10 -9 -9 -8 -7 -7 -7 -7 -6 -6 -6 -6 -6 -5 -5 -5 -5 -5 -4 -4 -4 -4 -4 -4 -3 -3 -3 ------- Run | Scr Mat Mat Sto Mat Fac Low Low Zio Pro Fac Low Low Dat Pro Fac Upp Upp War Pro Fac Ext Cet Arc Hub Res Qua Sec Combat Hostiles Destroyed 335 | . 13 24 15 28 23 3 8 . 11 17 1 4 . 3 14 3 7 5 8 31 8 4 . 17 27 30 31 Melee 1 | . . . . . . . . . . . . . . . 1 . . . . . . . . . . . . Guns 163 | . 13 12 . 23 23 1 4 . 6 1 . . . . . . . . . 3 7 2 . 17 21 17 13 Cannons 62 | . . 4 12 3 . . . . 1 11 1 . . . 8 2 2 2 1 12 1 2 . . . . . AOE 57 | . . 5 3 2 . 2 4 . 4 . . 4 . 3 2 1 4 1 4 12 . . . . . . 6 Classes Destroyed 21 | 1 5 5 1 1 1 . . . . . . . . . 1 . . . . . 1 . . . . 3 2 Worker 27 | . 1 2 1 2 1 . . . . 2 . . . . 1 . . . . 8 . . . 4 . . 5 Builder 7 | . . 1 . . 2 . . . . . . . . . 1 . . . . . . . . . 2 . 1 Tunneler 2 | . . 1 . . . . . . . . . . . . 1 . . . . . . . . . . . . Hauler 22 | . 1 3 5 4 3 . . . . 1 . . . . 1 . . . . 2 . . . 1 . . 1 Recycler 15 | 1 1 . . . 3 . . . . 4 . . . . . . . . . 2 1 . . . 2 . 1 Operator 9 | . . 1 3 . . . . . . . . . . . . . . . . 2 2 . . . . 1 . Watcher 38 | . 1 3 1 5 5 . . . . 3 . . . . 1 . . . . 9 1 . . 2 2 3 2 Swarmer 63 | . 3 3 . 7 7 2 4 . 5 3 . 4 . 3 . . 1 . 4 10 . 1 . . . . 6 Saboteur 1 | . . . . . . . . . . . . . . . 1 . . . . . . . . . . . . Grunt 99 | . 10 12 5 12 4 1 3 . 3 3 . . . . 5 3 5 5 4 1 4 . . 3 2 11 3 Brawler 3 | . . . 1 . . . 1 . . . . . . . 1 . . . . . . . . . . . . Duelist 7 | . . 1 3 . . . . . 1 . . . . . 1 . . . . . . 1 . . . . . Researcher 5 | . . . . . . . . . . . . . . . . . . . . . . . . . . . 5 Sentry 61 | . . 8 6 8 4 . . . 1 5 . . . . 2 . 1 . . 6 1 . . 8 5 . 6 Specialist 3 | . . . . . . . . . . . . . . . . . . . . . . . . . . 3 . Hunter 15 | . . . . 1 3 . . . . . . . . . . . . . . 2 . 1 . . 2 2 4 Programmer 75 | . . . . . 5 . . . 1 6 1 . . . 4 . . . . 12 2 . . 6 18 12 8 Behemoth 1 | . . . . . . . . . . . . . . . . . . . . . 1 . . . . . . Cetus Guard 1 | . . . . . . . . . . . . . . . . . . . . . . 1 . . . . . Enhanced Grunt 1 | . . . . . . . . . . . . . . 1 . . . . . . . . . . . . . Tracker 2 | . . . . . . . . . . . . . . . . . . . . . . . . . . . 2 Executioner 2 | . . . . . . . . . . . . . . . . . . . . . . . . . . . 2 Alpha 7 1 | . . . . . . . . . . . . . . . . . . . . . . . . . . 1 . Fortress 1 | . . . . . . . . . . . . . . . . . . . . . . . . . . 1 . Thug 1 | . . . . . . . . . . . . . . . . . . . . . . 1 . . . . . Best Kill Streak 16 | 1 5 4 4 12 6 2 4 . 5 3 1 4 . 3 5 2 4 4 4 10 2 1 . 4 4 5 16 Combat Bots Only 11 | . 5 3 4 11 4 2 4 . 5 3 1 4 . 3 4 2 4 4 4 8 2 1 . 4 3 5 8 Max Kills in Single Turn 14 | 1 2 2 2 3 2 2 3 . 3 2 1 3 . 2 2 1 2 1 4 6 1 1 . 1 1 1 14 Gunslinging 2 | . 1 . . 2 1 . 1 . . . . . . . . . . . . . . . . . . . 1 Exploded 6 | . . 1 1 2 . 2 3 . 3 . . 3 . 2 1 1 2 1 4 4 . . . . . . 6 Melee 1 | . . . . . . . . . . . . . . . 1 . . . . . . . . . . . . Uniques/NPCs Destroyed . | . . . . . . . . . . . . . . . . . . . . . . . . . . . . Combat | -11 -10 -9 -9 -8 -7 -7 -7 -7 -6 -6 -6 -6 -6 -5 -5 -5 -5 -5 -4 -4 -4 -4 -4 -4 -3 -3 -3 -------- Run | Scr Mat Mat Sto Mat Fac Low Low Zio Pro Fac Low Low Dat Pro Fac Upp Upp War Pro Fac Ext Cet Arc Hub Res Qua Sec Damage Taken 22840 | . 909 834 677 1144 1013 179 46 . 387 996 121 51 . 50 1550 185 311 190 84 2290 451 66 . 1288 2805 2029 5184 Core 2324 | . 159 96 24 135 27 . . . 69 82 . . . . 76 50 . . . 115 33 . . 148 223 48 1039 Absorbed by Shields 3184 | . . . . . . . . . . . . . . . . . . . . . 269 65 . 22 557 803 1468 Core Remaining (%) 77 | 100 36 . 70 75 . . . . 86 . . . . 90 . . . . 87 . . . . 74 . . . Volleys Fired 1090 | 2 66 64 42 85 91 8 11 . 18 60 6 2 . 9 63 4 13 10 10 95 56 20 . 73 92 101 89 Largest 3 | 2 2 3 3 3 3 3 3 . 3 2 2 1 . 2 2 2 2 2 2 2 2 2 . 2 2 2 2 Hottest 188 | 90 90 162 162 90 78 78 78 . 155 155 155 43 . 126 188 126 126 126 126 180 81 162 . 70 150 155 155 Shots Fired 2321 | 4 129 179 102 247 267 14 27 . 44 101 12 2 . 16 120 8 21 20 19 182 93 32 . 146 181 186 169 Gun 1683 | 4 126 165 20 217 267 9 24 . 30 11 . . . . . . . . . 54 74 15 . 146 179 174 168 Cannon 592 | . . 11 82 26 . . . . 6 90 12 . . 14 120 8 16 20 18 123 19 13 . . 2 12 . Launcher 46 | . 3 3 . 4 . 5 3 . 8 . . 2 . 2 . . 5 . 1 5 . 4 . . . . 1 Special . | . . . . . . . . . . . . . . . . . . . . . . . . . . . . Kinetic 1206 | . 62 21 10 243 267 9 24 . 30 11 . . . . . . . . . 54 74 14 . 146 121 82 38 Thermal 147 | 2 15 . . . . . . . 6 14 8 . . . 38 . . . . 49 . . . . 2 12 1 Explosive 30 | . 3 3 . 4 . 5 3 . 2 . . 2 . 2 . . . . 1 5 . . . . . . . Electromagnetic 938 | 2 49 155 92 . . . . . 6 76 4 . . 14 82 8 21 20 18 74 19 18 . . 58 92 130 Robot Hit Streak 39 | 4 10 10 15 26 21 4 8 . 17 22 6 . . 11 28 4 6 7 6 27 15 6 . 14 19 26 39 Robot Miss Streak 5 | . 3 4 2 5 5 3 1 . 1 3 5 . . . 3 2 2 1 2 2 2 5 . 3 2 4 3 Penetration Max 1 | . . . . . 1 . . . . . . . . . . . . . . 1 1 1 . 1 1 1 . Secondary Targets 22 | . 2 1 . 7 2 . 1 . 2 . . . . . . . . . . 1 . . . . 3 . 3 Max Gunslinging Chain 2 | . 1 1 . 2 1 . 1 . 1 . . . . . . . . . . 1 . . . . 1 . 1 Shots Hit Robots 1622 | 4 85 108 65 174 160 7 18 . 32 79 3 . . 11 81 6 11 16 13 133 71 14 . 111 142 145 133 Core Hits 751 | 2 34 43 31 71 63 5 13 . 23 32 2 4 . 9 31 5 18 7 8 75 36 9 . 50 62 53 65 Critical Hits 97 | . . 1 1 3 4 . . . . . . . . . . . . . . 7 10 2 . 24 25 15 5 Critical Kills 33 | . . . . . 3 . . . . . . . . . . . . . . 2 3 1 . 8 6 7 3 Critical Parts Destroyed 63 | . . . 1 3 1 . . . . . . . . . . . . . . 5 7 1 . 16 19 8 2 Melee Attacks 239 | . . . 2 9 13 2 . . . 18 5 9 . 7 28 5 6 1 4 18 1 . . 22 47 25 17 Kinetic 5 | . . . . . . . . . . . . . . . . . . . . . . . . . . 5 . Impact . | . . . . . . . . . . . . . . . . . . . . . . . . . . . . Slashing 234 | . . . 2 9 13 2 . . . 18 5 9 . 7 28 5 6 1 4 18 1 . . 22 47 20 17 Piercing . | . . . . . . . . . . . . . . . . . . . . . . . . . . . . Sneak Attacks 2 | . . . . . . . . . . 1 . . . . . . . . . . . . . . 1 . . Combat Hostiles . | . . . . . . . . . . . . . . . . . . . . . . . . . . . . Follow-up Attacks . | . . . . . . . . . . . . . . . . . . . . . . . . . . . . Damage Inflicted 58400 | 52 910 2300 1585 2897 2671 330 576 . 1110 2409 167 299 . 586 2900 324 866 701 601 6385 2169 517 . 3343 4776 4771 15155 Guns 28001 | 52 886 1674 119 2417 2671 66 318 . 460 138 . . . . . . . . . 1082 1680 220 . 3301 4638 4586 3693 Cannons 11838 | . . 124 1290 314 . . . . 123 2068 167 . . 179 2225 133 289 426 317 3421 489 236 . . . 37 . Explosions 18099 | . 22 502 176 166 . 264 258 . 527 103 . 299 . 407 643 191 577 275 284 1882 . 61 . . . . 11462 Melee 418 | . . . . . . . . . . 100 . . . . 32 . . . . . . . . . 138 148 . Ramming 44 | . 2 . . . . . . . . . . . . . . . . . . . . . . 42 . . . Kinetic 20161 | . 360 85 142 2731 2671 66 318 . 460 138 . . . . . . . . . 1082 1680 220 . 3301 3429 2485 993 Thermal 17201 | 25 107 452 176 . . . . . 123 516 141 . . . 1513 191 153 275 . 2030 . . . . . 37 11462 Explosive 3448 | . 22 50 . 166 . 264 258 . 371 . . 299 . 407 . . . . 284 1327 . . . . . . . Electromagnetic 17276 | 27 419 1713 1267 . . . . . 156 1655 26 . . 179 1355 133 713 426 317 1946 489 297 . . 1209 2249 2700 Impact . | . . . . . . . . . . . . . . . . . . . . . . . . . . . . Slashing 270 | . . . . . . . . . . 100 . . . . 32 . . . . . . . . . 138 . . Piercing . | . . . . . . . . . . . . . . . . . . . . . . . . . . . . Highest Corruption 16 | . . . 1 . 3 . . . . 1 2 . . . 3 . . 2 . 5 . . . 2 12 13 16 Average Corruption 3 | . . . 1 . 1 . . . . 1 1 . . . 1 . . 1 . 2 . . . 1 6 8 5 Corruption Purged 58 | . . . . . 6 . . . . 2 2 . . . 4 . . . . 12 . . . 2 12 13 5 Effects 194 | . . . 9 . 7 . . . . . . . . . 11 . . . . 33 . . . 3 26 66 39 Message Errors 46 | . . . 3 . 2 . . . . . . . . . 4 . . . . 13 . . . 1 5 12 6 Matter Fused 34 | . . . . . 1 . . . . . . . . . 1 . . . . 5 . . . . 3 15 9 Heat Flow Errors 18 | . . . . . . . . . . . . . . . 1 . . . . 2 . . . . 2 8 5 Energy Discharges 14 | . . . . . . . . . . . . . . . 2 . . . . 4 . . . 2 1 2 3 Data Loss (minor) 16 | . . . 2 . 2 . . . . . . . . . 1 . . . . 3 . . . . 2 4 2 Data Loss (major) 9 | . . . . . . . . . . . . . . . . . . . . . . . . . 1 4 4 Misfires 2 | . . . . . . . . . . . . . . . . . . . . . . . . . 1 1 . Alerts 4 | . . . . . . . . . . . . . . . . . . . . . . . . . 1 3 . Targeting Errors 42 | . . . 2 . 2 . . . . . . . . . 2 . . . . 4 . . . . 8 15 9 Weapon Failures 9 | . . . 2 . . . . . . . . . . . . . . . . 2 . . . . 2 2 1 Overload Shots . | . . . . . . . . . . . . . . . . . . . . . . . . . . . . Overflow Damage 2599 | . . 23 71 21 . 26 28 . 5 36 . . . . 54 1 6 45 11 250 20 . . 2 . . 2000 Projectiles 298 | . . . 60 8 . . . . . 36 . . . . 41 . 5 . 11 117 20 . . . . . . Explosions 2299 | . . 23 11 13 . 26 28 . 5 . . . . . 13 1 1 45 . 133 . . . . . . 2000 Melee 2 | . . . . . . . . . . . . . . . . . . . . . . . . 2 . . . Knockbacks 8 | . . 2 2 3 . . . . . . . . . . . . . . . . . . . 1 . . . Impact 1 | . . . . . . . . . . . . . . . . . . . . . . . . 1 . . . Kinetic 7 | . . 2 2 3 . . . . . . . . . . . . . . . . . . . . . . . Secondary . | . . . . . . . . . . . . . . . . . . . . . . . . . . . . Self-Inflicted Damage 994 | . . 32 60 . . 32 . . 20 . . 7 . . 76 68 . . . 76 . . . . . . 623 Shots 13 | . . 1 2 . . 1 . . 2 . . 1 . . 1 1 . . . 2 . . . . . . 2 Rammed 3 | . 2 . . . . . . . . . . . . . . . . . . . . . . 1 . . . Targets Rammed 3 | . 2 . . . . . . . . . . . . . . . . . . . . . . 1 . . . Kicked . | . . . . . . . . . . . . . . . . . . . . . . . . . . . . Crushed . | . . . . . . . . . . . . . . . . . . . . . . . . . . . . Highest Temperature 379 | 60 246 268 51 54 212 61 99 . 225 244 243 . . 180 252 151 144 303 180 379 246 208 . 39 228 195 242 Average Temperature 64 | 31 63 62 20 30 54 31 48 . 86 69 100 . . 74 57 74 61 123 68 98 65 57 . 8 63 72 62 Received Heat Transfer 2432 | . 378 270 90 342 84 18 18 . 63 216 . . . . 177 48 81 63 12 111 47 4 . 148 106 107 49 Effects 3 | . . . . . . . . . . . . . . . 1 . . . . 2 . . . . . . . Shutdowns 1 | . . . . . . . . . . . . . . . . . . . . 1 . . . . . . . Energy Bleed 1 | . . . . . . . . . . . . . . . . . . . . 1 . . . . . . . Interference 1 | . . . . . . . . . . . . . . . 1 . . . . . . . . . . . . Siege Activations . | . . . . . . . . . . . . . . . . . . . . . . . . . . . . Robots Corrupted 58 | . . 3 . . . . . . . 6 . . . 1 5 . 1 2 3 6 . . . . 5 12 14 Combat Hostiles 49 | . . 3 . . . . . . . 5 . . . . 3 . 1 2 3 4 . . . . 5 11 12 Parts Fried 157 | . . 8 10 . . . . . 1 20 . . . 3 7 . . 5 1 19 3 . . . 13 25 42 Impact Corruptions 1 | . . . . . . . . . . . . . . . . . . . . . . . . 1 . . . Robots Melted . | . . . . . . . . . . . . . . . . . . . . . . . . . . . . Combat Hostiles . | . . . . . . . . . . . . . . . . . . . . . . . . . . . . Parts Melted 17 | . 1 . . . . . . . 1 3 1 . . . 2 . . . . 1 . . . . 5 3 . Heat Transferred 5259 | 74 261 450 300 . . . . . 174 544 148 . . . 1516 150 200 200 . 1125 . . . . . 37 80 Parts Sabotaged . | . . . . . . . . . . . . . . . . . . . . . . . . . . . . Parts Stolen . | . . . . . . . . . . . . . . . . . . . . . . . . . . . . Parts Stripped . | . . . . . . . . . . . . . . . . . . . . . . . . . . . . Power Chain Reactions 26 | . . 9 4 . . . . . . 2 . . . . 3 1 3 2 . 2 . . . . . . . Missiles Intercepted . | . . . . . . . . . . . . . . . . . . . . . . . . . . . . Alert | -11 -10 -9 -9 -8 -7 -7 -7 -7 -6 -6 -6 -6 -6 -5 -5 -5 -5 -5 -4 -4 -4 -4 -4 -4 -3 -3 -3 ------- Run | Scr Mat Mat Sto Mat Fac Low Low Zio Pro Fac Low Low Dat Pro Fac Upp Upp War Pro Fac Ext Cet Arc Hub Res Qua Sec Peak Influence 1120 | 5 301 456 574 499 397 . . . . 212 . . . . 608 . . . . 906 575 886 569 544 495 250 1120 Average Influence 239 | 1 136 256 332 246 225 . . . . 68 . . . . 173 . . . . 336 317 636 366 365 281 115 355 Maximum Alert Level 4 | . 1 2 2 2 1 . . . . 1 . . . . 2 . . . . 3 2 3 2 2 2 1 4 Low Security (%) 47 | . . . . . . . . . . . . . . . . . . . . . . . . . . . . Level 1 35 | . . . . . . . . . . . . . . . . . . . . . . . . . . . . Level 2 14 | . . . . . . . . . . . . . . . . . . . . . . . . . . . . Level 3 2 | . . . . . . . . . . . . . . . . . . . . . . . . . . . . Level 4 . | . . . . . . . . . . . . . . . . . . . . . . . . . . . . Level 5 . | . . . . . . . . . . . . . . . . . . . . . . . . . . . . High Security . | . . . . . . . . . . . . . . . . . . . . . . . . . . . . Max Security . | . . . . . . . . . . . . . . . . . . . . . . . . . . . . Squads Dispatched 82 | . 3 4 6 5 8 . . . . 6 . . . . 9 . . . . 6 4 . . 7 7 6 11 Investigation 6 | . 2 1 . 1 1 . . . . . . . . . . . . . . . . . . . . . 1 Extermination 34 | . . . . . 4 . . . . 5 . . . . 3 . . . . 5 . . . 3 6 5 3 Reinforcement 29 | . 1 3 4 4 3 . . . . . . . . . 2 . . . . . 4 . . 3 1 1 3 Assault 4 | . . . 2 . . . . . . . . . . . 1 . . . . 1 . . . . . . . Garrison 5 | . . . . . . . . . . 1 . . . . 3 . . . . . . . . 1 . . . Intercept 4 | . . . . . . . . . . . . . . . . . . . . . . . . . . . 4 Construction Impeded 3 | . . . . . . . . . . . . . . . 1 . . . . . . . . . 1 . 1 Haulers Reinforced 3 | . . . . . 2 . . . . . . . . . 1 . . . . . . . . . . . . Stealth | -11 -10 -9 -9 -8 -7 -7 -7 -7 -6 -6 -6 -6 -6 -5 -5 -5 -5 -5 -4 -4 -4 -4 -4 -4 -3 -3 -3 --------- Run | Scr Mat Mat Sto Mat Fac Low Low Zio Pro Fac Low Low Dat Pro Fac Upp Upp War Pro Fac Ext Cet Arc Hub Res Qua Sec Distress Signals 33 | . 2 2 1 6 3 . . . . 2 . . . . . . . . . 6 2 2 1 1 . 1 4 Communications Jammed . | . . . . . . . . . . . . . . . . . . . . . . . . . . . . Distress Signals . | . . . . . . . . . . . . . . . . . . . . . . . . . . . . Times Spotted 511 | . 24 37 26 49 33 7 5 . 12 26 1 3 . 4 22 4 8 11 4 47 31 14 3 25 32 38 45 Peak Tracking Total 10 | . 6 4 4 10 5 3 4 . 4 3 1 4 . 4 5 3 5 6 2 5 8 4 8 4 4 5 9 Tactical Retreats 35 | . . 1 . 5 2 5 1 . 1 3 . . . . 2 1 1 . 1 6 . . 1 1 . 3 1 Traps | -11 -10 -9 -9 -8 -7 -7 -7 -7 -6 -6 -6 -6 -6 -5 -5 -5 -5 -5 -4 -4 -4 -4 -4 -4 -3 -3 -3 ------- Run | Scr Mat Mat Sto Mat Fac Low Low Zio Pro Fac Low Low Dat Pro Fac Upp Upp War Pro Fac Ext Cet Arc Hub Res Qua Sec Traps Triggered 20 | . 2 3 2 3 1 . . . . . . . . . 1 . . . . 1 3 . . 2 1 . 1 Indirectly . | . . . . . . . . . . . . . . . . . . . . . . . . . . . . Trap Hack Attempts . | . . . . . . . . . . . . . . . . . . . . . . . . . . . . Triggered . | . . . . . . . . . . . . . . . . . . . . . . . . . . . . Disarmed . | . . . . . . . . . . . . . . . . . . . . . . . . . . . . Reprogrammed . | . . . . . . . . . . . . . . . . . . . . . . . . . . . . Reused . | . . . . . . . . . . . . . . . . . . . . . . . . . . . . Traps Extracted . | . . . . . . . . . . . . . . . . . . . . . . . . . . . . Installed . | . . . . . . . . . . . . . . . . . . . . . . . . . . . . Triggered 19 | . . . . . . 1 . . . . 3 1 . . . 1 . 11 1 . . . . . . . 1 Machines | -11 -10 -9 -9 -8 -7 -7 -7 -7 -6 -6 -6 -6 -6 -5 -5 -5 -5 -5 -4 -4 -4 -4 -4 -4 -3 -3 -3 ---------- Run | Scr Mat Mat Sto Mat Fac Low Low Zio Pro Fac Low Low Dat Pro Fac Upp Upp War Pro Fac Ext Cet Arc Hub Res Qua Sec Machines Disabled 86 | . 1 3 4 1 1 . . . . 1 . . . . 3 . . . . 15 1 2 . 7 4 12 31 Max in Single Turn 25 | . 1 1 2 1 1 . . . . 1 . . . . 1 . . . . 5 1 1 . 1 1 1 25 Garrison Access 7 | . . . . 1 1 . . . . 2 . . . . . . . . . 1 . . . . 1 1 . Energy Cycler 2 | . . . . . . . . . . . . . . . . . . . . . 2 . . . . . . Machines Sabotaged . | . . . . . . . . . . . . . . . . . . . . . . . . . . . . Garrisons Compromised . | . . . . . . . . . . . . . . . . . . . . . . . . . . . . Overloaded Fab Kills . | . . . . . . . . . . . . . . . . . . . . . . . . . . . . Fab Network Shutdowns 1 | . . . . . . . . . . . . . . . 1 . . . . . . . . . . . . Hacking | -11 -10 -9 -9 -8 -7 -7 -7 -7 -6 -6 -6 -6 -6 -5 -5 -5 -5 -5 -4 -4 -4 -4 -4 -4 -3 -3 -3 --------- Run | Scr Mat Mat Sto Mat Fac Low Low Zio Pro Fac Low Low Dat Pro Fac Upp Upp War Pro Fac Ext Cet Arc Hub Res Qua Sec Machines Accessed 121 | . 5 9 4 10 7 . . 1 . 16 . 3 4 . 4 . 1 1 . 10 15 1 1 7 9 9 4 Terminals 91 | . 5 7 4 7 6 . . . . 10 . . . . 2 . . . . 9 15 1 . 7 6 8 4 Fabricators 5 | . . . . . . . . . . 2 . . . . 2 . . . . . . . . . 1 . . Repair Stations 3 | . . 1 . 1 . . . . . . . . . . . . . . . . . . . . 1 . . Recycling Units 3 | . . . . 1 . . . . . 2 . . . . . . . . . . . . . . . . . Scanalyzers 1 | . . 1 . . . . . . . . . . . . . . . . . . . . . . . . . Garrison Access 7 | . . . . 1 1 . . . . 2 . . . . . . . . . 1 . . . . 1 1 . Total Hacks 328 | . 18 21 17 33 14 . . 5 . 32 . 9 30 . 10 . 1 1 . 23 34 2 25 13 18 15 7 Successful 221 | . 15 14 12 20 8 . . 5 . 13 . 9 30 . 5 . 1 1 . 12 20 1 25 5 13 8 4 Failed 107 | . 3 7 5 13 6 . . . . 19 . . . . 5 . . . . 11 14 1 . 8 5 7 3 Catastrophic 25 | . . 1 1 . 3 . . . . 5 . . . . 1 . . . . 1 5 . . 6 1 1 . Database Lockouts . | . . . . . . . . . . . . . . . . . . . . . . . . . . . . Manual 160 | . 10 8 13 17 10 . . . . 16 . . . . 4 . . 1 1 16 27 3 1 8 11 10 4 Terminals 218 | . 18 13 17 27 13 . . . . 21 . . . . 4 . . . . 22 34 2 . 13 14 13 7 Fabricators 14 | . . . . . . . . . . 7 . . . . 6 . . . . . . . . . 1 . . Repair Stations 7 | . . 3 . 2 . . . . . . . . . . . . . . . . . . . . 2 . . Recycling Units 3 | . . . . 1 . . . . . 2 . . . . . . . . . . . . . . . . . Scanalyzers 5 | . . 5 . . . . . . . . . . . . . . . . . . . . . . . . . Garrison Access 10 | . . . . 3 1 . . . . 2 . . . . . . . . . 1 . . . . 1 2 . Terminal Hacks 139 | . 8 2 8 11 3 . . 5 . 2 . 9 30 . . . 1 1 . 7 12 . 25 2 7 4 2 Record 43 | . . . . . . . . . . . . 7 11 . . . . . . . . . 25 . . . . Part Schematic 18 | . . . . . 1 . . 5 . 1 . . 9 . . . . . . 1 1 . . . . . . Robot Schematic 7 | . . . . . . . . . . . . . 7 . . . . . . . . . . . . . . Robot Analysis 4 | . 2 . . . . . . . . . . . . . . . . . . 1 . . . 1 . . . Prototype ID Bank 5 | . 1 1 . . . . . . . . . . 3 . . . . . . . . . . . . . . Open Door 7 | . . . 1 . . . . . . . . 2 . . . . 1 1 . 1 . . . . . . 1 Level Access Points 1 | . . . 1 . . . . . . . . . . . . . . . . . . . . . . . . Branch Access Points 5 | . 1 . . 1 1 . . . . . . . . . . . . . . 1 . . . . 1 . . Machine Index 1 | . . . . . . . . . . . . . . . . . . . . . . . . . . 1 . Terminal Index 5 | . 1 1 . 1 . . . . . 1 . . . . . . . . . . . . . . . 1 . Alert Level 7 | . 1 . 1 1 . . . . . . . . . . . . . . . . 3 . . . 1 . . Unreport Threat 18 | . . . 2 2 . . . . . . . . . . . . . . . 2 5 . . 1 4 2 . Locate Traps 5 | . . . 1 1 1 . . . . . . . . . . . . . . 1 . . . . 1 . . Transport Status 1 | . 1 . . . . . . . . . . . . . . . . . . . . . . . . . . Recall Reinforcements 1 | . . . . . . . . . . . . . . . . . . . . . 1 . . . . . . Hauler Manifests 1 | . . . . 1 . . . . . . . . . . . . . . . . . . . . . . . Zone Layout 10 | . 1 . 2 4 . . . . . . . . . . . . . . . . 2 . . . . . 1 Fabricator Hacks 8 | . . . . . . . . . . 4 . . . . 4 . . . . . . . . . . . . Load Schematic 4 | . . . . . . . . . . 2 . . . . 2 . . . . . . . . . . . . Build 4 | . . . . . . . . . . 2 . . . . 2 . . . . . . . . . . . . Repair Station Hacks 4 | . . 1 . 1 . . . . . . . . . . . . . . . . . . . . 2 . . Scan Component 3 | . . 1 . 1 . . . . . . . . . . . . . . . . . . . . 1 . . Repair 1 | . . . . . . . . . . . . . . . . . . . . . . . . . 1 . . Recycling Unit Hacks 3 | . . . . 1 . . . . . 2 . . . . . . . . . . . . . . . . . Report Inventory 3 | . . . . 1 . . . . . 2 . . . . . . . . . . . . . . . . . Scanalyzer 5 | . . 5 . . . . . . . . . . . . . . . . . . . . . . . . . Insert Component 2 | . . 2 . . . . . . . . . . . . . . . . . . . . . . . . . Analyze 3 | . . 3 . . . . . . . . . . . . . . . . . . . . . . . . . Garrison Access Hacks 7 | . . . . 1 1 . . . . 2 . . . . . . . . . 1 . . . . 1 1 . Seal Access 7 | . . . . 1 1 . . . . 2 . . . . . . . . . 1 . . . . 1 1 . Unauthorized Hacks 141 | . 15 12 9 17 10 . . . . 10 . . . . 4 . . . . 10 21 3 . 11 7 6 6 Terminals 55 | . 7 6 4 6 4 . . . . 3 . . . . 1 . . . . 4 8 1 . 3 3 3 2 Track 29 | . 4 4 2 5 1 . . . . 1 . . . . . . . . . 1 3 . . 3 1 2 2 Assimilate 2 | . . . . . . . . . . 1 . . . . . . . . . 1 . . . . . . . Botnet 22 | . 3 2 2 1 3 . . . . 1 . . . . 1 . . . . 2 4 1 . . 1 1 . Disrupt 1 | . . . . . . . . . . . . . . . . . . . . . 1 . . . . . . Operators 1 | . . . . . . . . . . . . . . . . . . . . . . . . . 1 . . Fabricators . | . . . . . . . . . . . . . . . . . . . . . . . . . . . . Repair Stations . | . . . . . . . . . . . . . . . . . . . . . . . . . . . . Recycling Units . | . . . . . . . . . . . . . . . . . . . . . . . . . . . . Scanalyzers . | . . . . . . . . . . . . . . . . . . . . . . . . . . . . Garrison Access . | . . . . . . . . . . . . . . . . . . . . . . . . . . . . Data Cores Recovered 2 | . . . . . . . . . . . . . . . . . . . . 1 . . . . . 1 . Used 1 | . . . . . . . . . . . . . . . . . . . . . . . . . . 1 . Hacking Detections 97 | . 5 8 3 9 6 . . . . 12 . . . . 4 . . . . 9 12 2 . 7 8 8 4 Full Trace Events 1 | . . 1 . . . . . . . . . . . . . . . . . . . . . . . . . Feedback Events . | . . . . . . . . . . . . . . . . . . . . . . . . . . . . Feedback Blocked . | . . . . . . . . . . . . . . . . . . . . . . . . . . . . Robot Schematics Acquired 7 | . . . . . . . . . . . . . 7 . . . . . . . . . . . . . . Robots Built . | . . . . . . . . . . . . . . . . . . . . . . . . . . . . Matter . | . . . . . . . . . . . . . . . . . . . . . . . . . . . . Time . | . . . . . . . . . . . . . . . . . . . . . . . . . . . . Total Robot Build Rating . | . . . . . . . . . . . . . . . . . . . . . . . . . . . . Part Schematics Acquired 20 | . . 2 . . 1 . . 5 . 1 . . 9 . . . . . . 1 1 . . . . . . Parts Built 4 | . . . . . . . . . . 2 . . . . 2 . . . . . . . . . . . . Matter 906 | . . . . . . . . . . 336 . . . . 570 . . . . . . . . . . . . Time 320 | . . . . . . . . . . 168 . . . . 152 . . . . . . . . . . . . Total Part Build Rating 18 | . . . . . . . . . . 8 . . . . 10 . . . . . . . . . . . . Parts Repaired 1 | . . . . . . . . . . . . . . . . . . . . . . . . . 1 . . Time 40 | . . . . . . . . . . . . . . . . . . . . . . . . . 40 . . Parts Recycled . | . . . . . . . . . . . . . . . . . . . . . . . . . . . . Recycled Matter . | . . . . . . . . . . . . . . . . . . . . . . . . . . . . Retrieved Matter . | . . . . . . . . . . . . . . . . . . . . . . . . . . . . Retrieved Components . | . . . . . . . . . . . . . . . . . . . . . . . . . . . . Parts Scanalyzed 2 | . . 2 . . . . . . . . . . . . . . . . . . . . . . . . . Part Schematics Acquired 2 | . . 2 . . . . . . . . . . . . . . . . . . . . . . . . . Parts Damaged 1 | . . 1 . . . . . . . . . . . . . . . . . . . . . . . . . Bothacking | -11 -10 -9 -9 -8 -7 -7 -7 -7 -6 -6 -6 -6 -6 -5 -5 -5 -5 -5 -4 -4 -4 -4 -4 -4 -3 -3 -3 ------------ Run | Scr Mat Mat Sto Mat Fac Low Low Zio Pro Fac Low Low Dat Pro Fac Upp Upp War Pro Fac Ext Cet Arc Hub Res Qua Sec Used RIF Installer . | . . . . . . . . . . . . . . . . . . . . . . . . . . . . Robots Hacked . | . . . . . . . . . . . . . . . . . . . . . . . . . . . . Non-combat . | . . . . . . . . . . . . . . . . . . . . . . . . . . . . Combat . | . . . . . . . . . . . . . . . . . . . . . . . . . . . . Robot Hacks Applied . | . . . . . . . . . . . . . . . . . . . . . . . . . . . . Relay Couplers Released . | . . . . . . . . . . . . . . . . . . . . . . . . . . . . Robots Rewired 8 | . . . . . . . . . . . . . . . . . . . . . 8 . . . . . . Allies Hacked 1 | . . . . . . . . . . . . . . . . . . . . 1 . . . . . . . Hacks Repelled . | . . . . . . . . . . . . . . . . . . . . . . . . . . . . Allies | -11 -10 -9 -9 -8 -7 -7 -7 -7 -6 -6 -6 -6 -6 -5 -5 -5 -5 -5 -4 -4 -4 -4 -4 -4 -3 -3 -3 -------- Run | Scr Mat Mat Sto Mat Fac Low Low Zio Pro Fac Low Low Dat Pro Fac Upp Upp War Pro Fac Ext Cet Arc Hub Res Qua Sec Total Allies 38 | . . . 2 . . . . . . . . . . 1 . . . . . 1 18 5 3 2 . . 6 Largest Group 11 | . . . 2 . . . . . . . . . . 1 . . . . . 1 11 10 9 2 2 . 6 Highest-Rated Group 864 | . . . 62 . . . . . . . . . . 94 . . . . . 10 572 725 864 92 92 . 85 Highest-Rated Ally 156 | . . . 31 . . . . . . . . . . 94 . . . . . 10 156 143 137 46 46 . 15 Total Orders 10 | . . . . . . . . . . . . . . . . . . . . 7 . 3 . . . . . GOTO 5 | . . . . . . . . . . . . . . . . . . . . 2 . 3 . . . . . FOLLOW 5 | . . . . . . . . . . . . . . . . . . . . 5 . . . . . . . Ally Attacks 354 | . . . 21 . . . . . . . . . . 2 . . . . . . 158 91 49 . 20 . 13 Total Damage 10060 | . . . 376 . . . . . . . . . . 97 . . . . . . 4319 2553 1980 . 451 . 284 Kills 59 | . . . 4 . . . . . . . . . . 2 . . . . . . 26 16 8 . 2 . 1 Allies Corrupted 2 | . . . . . . . . . . . . . . 1 . . . . . . . . . . . . 1 Allies Melted 1 | . . . . . . . . . . . . 1 . . . . . . . . . . . . . . . Intel | -11 -10 -9 -9 -8 -7 -7 -7 -7 -6 -6 -6 -6 -6 -5 -5 -5 -5 -5 -4 -4 -4 -4 -4 -4 -3 -3 -3 ------- Run | Scr Mat Mat Sto Mat Fac Low Low Zio Pro Fac Low Low Dat Pro Fac Upp Upp War Pro Fac Ext Cet Arc Hub Res Qua Sec Robot Analysis Total 4 | . 2 . . . . . . . . . . . . . . . . . . 1 . . . 1 . . . Derelict Logs Recovered 8 | . . . . . . . 1 . 1 . 1 1 . 3 . . . . 1 . . . . . . . . Drone Launches 2 | . . . . . . . . . . . . . . . . . . . . . 2 . . . . . . Drone Recoveries . | . . . . . . . . . . . . . . . . . . . . . . . . . . . . Exploration | -11 -10 -9 -9 -8 -7 -7 -7 -7 -6 -6 -6 -6 -6 -5 -5 -5 -5 -5 -4 -4 -4 -4 -4 -4 -3 -3 -3 ------------- Run | Scr Mat Mat Sto Mat Fac Low Low Zio Pro Fac Low Low Dat Pro Fac Upp Upp War Pro Fac Ext Cet Arc Hub Res Qua Sec Turns Passed 36439 | 76 931 1589 581 2170 3567 1073 768 1219 845 3236 803 1035 147 637 2143 467 928 626 739 2966 1446 524 76 1294 2693 2473 1387 Spaces Moved 16251 | 37 418 742 229 984 1701 526 390 649 363 1377 359 515 80 315 903 235 438 310 352 1331 645 242 40 575 1042 934 519 Core 59 | 6 . . . . . . . . . . . . . . . . . . . . . . . . . . 53 Treads 16192 | 31 418 742 229 984 1701 526 390 649 363 1377 359 515 80 315 903 235 438 310 352 1331 645 242 40 575 1042 934 466 Legs . | . . . . . . . . . . . . . . . . . . . . . . . . . . . . Wheels . | . . . . . . . . . . . . . . . . . . . . . . . . . . . . Hover . | . . . . . . . . . . . . . . . . . . . . . . . . . . . . Flight . | . . . . . . . . . . . . . . . . . . . . . . . . . . . . Fastest Speed 50 | 50 160 165 165 181 181 186 186 186 186 186 186 186 186 186 185 185 183 183 186 182 182 180 180 165 165 180 50 Average Speed 183 | 152 164 170 168 181 184 186 186 186 195 198 186 186 186 186 190 185 185 183 186 185 182 180 180 169 183 189 164 Slowest Speed 270 | 160 180 205 205 270 201 186 186 186 206 206 186 187 186 186 206 185 205 186 186 186 182 182 180 180 190 190 180 Overloaded Moves . | . . . . . . . . . . . . . . . . . . . . . . . . . . . . Propulsion Burnouts . | . . . . . . . . . . . . . . . . . . . . . . . . . . . . Robots Hopped . | . . . . . . . . . . . . . . . . . . . . . . . . . . . . Cave-ins Triggered . | . . . . . . . . . . . . . . . . . . . . . . . . . . . . Exploration Rate (%) 57 | 4 58 72 57 88 42 78 57 84 64 42 62 69 70 59 24 47 59 56 50 35 88 73 67 59 25 85 26 Regions Visited 27 Branch Regions 19 Pre-discovered Areas 6 | . . . . . . . . 2 . . 1 2 1 . . . . . . . . . . . . . . Known Exits Taken 23 | . . . 1 . 1 1 1 1 1 1 1 1 1 1 1 1 1 1 1 1 1 1 1 1 1 1 . Unknown Exits Taken 4 | 1 1 1 . 1 . . . . . . . . . . . . . . . . . . . . . . . Scrap Searched 13 | . . . . . . 2 1 2 1 . 2 1 . . . . 3 . 1 . . . . . . . . Spaces Dug 343 | . 18 8 1 31 13 11 15 . . 17 5 38 . 7 27 5 13 1 4 24 3 . . 22 45 19 16 Terrain Destroyed 766 | . 18 54 13 56 16 48 35 . 22 34 7 38 . 37 50 13 26 10 21 107 6 3 . 59 45 19 29 Melee 220 | . . . 1 9 13 2 . . . 17 5 9 . 7 27 5 6 1 4 17 1 . . 22 44 15 15 Projectile 94 | . . . . 6 3 3 . . 1 1 2 . . . 12 . . . . 14 5 3 . 37 1 4 2 AOE 452 | . 18 54 12 41 . 43 35 . 21 16 . 29 . 30 11 8 20 9 17 76 . . . . . . 12 Actions | -11 -10 -9 -9 -8 -7 -7 -7 -7 -6 -6 -6 -6 -6 -5 -5 -5 -5 -5 -4 -4 -4 -4 -4 -4 -3 -3 -3 --------- Run | Scr Mat Mat Sto Mat Fac Low Low Zio Pro Fac Low Low Dat Pro Fac Upp Upp War Pro Fac Ext Cet Arc Hub Res Qua Sec Total 20616 | 49 540 932 330 1180 1970 606 416 664 466 1745 474 575 79 343 1183 257 533 352 418 1661 859 311 44 755 1562 1418 894 Wait 1671 | . 18 42 28 37 87 64 13 4 71 181 97 43 . 1 118 14 59 8 51 133 52 6 4 69 283 109 79 Move 16225 | 36 417 741 228 983 1700 525 389 648 362 1376 358 514 79 314 902 234 437 309 351 1330 644 241 39 575 1041 933 519 Hop . | . . . . . . . . . . . . . . . . . . . . . . . . . . . . Pick Up 215 | 4 12 33 5 21 20 1 . 5 . 18 . 1 . 1 16 . 4 1 . 13 5 7 . 2 12 17 17 Fast Attach 182 | 6 5 6 6 7 5 . . 1 1 6 . 2 . 2 6 . 3 8 . 7 3 6 . 6 14 50 32 Attach 181 | . 8 9 4 10 4 . . . 2 6 . 1 . 2 12 . 2 1 . 11 1 1 . 1 10 52 44 Detach 106 | . 2 2 1 2 . . . . . 1 . . . 2 3 . 2 2 . 1 1 2 . . 5 50 30 Swap 312 | 1 5 15 6 16 27 5 3 . 10 43 8 2 . 3 18 . 4 2 2 42 8 10 1 2 32 28 19 Drop 289 | . 5 20 8 10 23 1 . 6 2 16 . 1 . 2 15 . 3 10 . 9 8 18 . 5 26 53 48 Fire 1090 | 2 66 64 42 85 91 8 11 . 18 60 6 2 . 9 63 4 13 10 10 95 56 20 . 73 92 101 89 Melee 239 | . . . 2 9 13 2 . . . 18 5 9 . 7 28 5 6 1 4 18 1 . . 22 47 25 17 Ram . | . . . . . . . . . . . . . . . . . . . . . . . . . . . . Kick . | . . . . . . . . . . . . . . . . . . . . . . . . . . . . Crush 2 | . 2 . . . . . . . . . . . . . . . . . . . . . . . . . . Escape Stasis 10 | . . . . . . . . . . . . . . . 2 . . . . 2 6 . . . . . . Rewire 93 | . . . . . . . . . . 20 . . . . . . . . . . 73 . . . . . . Trap . | . . . . . . . . . . . . . . . . . . . . . . . . . . . . Miscellaneous 1 | . . . . . . . . . . . . . . . . . . . . . 1 . . . . . . Route ------- -11/Scrapyard -10/Materials (discovered 4 exits: *Mat x2 / Min x2) -9/Materials (discovered 5 exits: *Mat x3 / [*Min] / *Sto) -9/Storage -8/Materials (discovered 2 exits: *Fac x2) -7/Factory (discovered 4 exits: *Fac x2 / *Low x2) -7/Lower Caves (discovered 2 exits: *Low / *Zio) -7/Lower Caves -7/Zion -6/Proximity Caves -6/Factory (discovered 5 exits: *Fac x3 / *Low x2) -6/Lower Caves -6/Lower Caves (discovered 2 exits: *Fac / *Dat) -6/Data Miner -5/Proximity Caves -5/Factory (discovered 3 exits: *Fac x2 / *Upp) -5/Upper Caves -5/Upper Caves -5/Warlord -4/Proximity Caves -4/Factory (discovered 6 exits: *Res / Upp x2 / *Ext x2 / Arm) -4/Extension (discovered 3 exits: *Res x2 / *Cet) -4/Cetus (discovered 2 exits: *Res / *Arc) -4/Archives -4/Hub_04(d) (discovered 2 exits: *Res x2) -3/Research (discovered 3 exits: Res / *Qua x2) -3/Quarantine (discovered 2 exits: *Res / *Sec) -3/Section 7 (discovered 1 exit: *Res) History --------- Turn | Location | Event 16 | -11/Scrapyard | Discovered new exit (range 16) 77 | -11/Scrapyard | Entered Materials 303 | -10/Materials | Build established: Mutant 336 | -10/Materials | Discovered new exit (range 13) 509 | -10/Materials | Identified exit to Mines 627 | -10/Materials | Discovered new exit (range 8) 880 | -10/Materials | Lost 5 parts (1p1n3w) 927 | -10/Materials | Core integrity fell below 50% 1008 | -10/Materials | Entered another Materials area 1008 | -9/Materials | Evolved 2 slots: Utility x1, Weapon x1 1425 | -9/Materials | Discovered new exit (range 15) 1671 | -9/Materials | Build established: Gunner 1688 | -9/Materials | Discovered new exit (range 9) 1919 | -9/Materials | Discovered new exit (range 16) 2188 | -9/Materials | Build established: Hauler-Gunner 2274 | -9/Materials | Discovered new exit (range 10) 2501 | -9/Materials | Discovered new exit (range 15) 2571 | -9/Materials | Lost 3 parts (3w) 2597 | -9/Materials | Entered Storage 2988 | -9/Storage | Identified exit to Materials 3066 | -9/Storage | Met a pair of Derelict thieves 3178 | -9/Storage | Entered Materials 3178 | -8/Materials | Evolved 2 slots: Propulsion x1, Utility x1 3485 | -8/Materials | Build established: Hauler-Tank 3650 | -8/Materials | Discovered new exit (range 7) 4075 | -8/Materials | Discovered new exit (range 14) 4243 | -8/Materials | Build established: Hauler-Gunner 4395 | -8/Materials | Destroyed 11 combat bots 5348 | -8/Materials | Entered Factory 5348 | -7/Factory | Evolved 2 slots: Utility x2 5660 | -7/Factory | Build established: Hauler-Skirmisher 6709 | -7/Factory | Discovered new exit (range 3) 6712 | -7/Factory | Identified exit to Factory 8072 | -7/Factory | Identified exit to Lower Caves 8372 | -7/Factory | Discovered exit to Factory (range 15) 8915 | -7/Factory | Entered Lower Caves 8944 | -7/Lower Caves | A Derelict revealed a hidden shortcut to a safe place 8956 | -7/Lower Caves | Identified exit to Zion 9171 | -7/Lower Caves | Encountered a Warlord checkpoint 9972 | -7/Lower Caves | Discovered new exit (range 10) 9985 | -7/Lower Caves | Identified exit to Lower Caves 9988 | -7/Lower Caves | Entered another Lower Caves area 10013 | -7/Lower Caves | Learned Factory emergency access door positions 10465 | -7/Lower Caves | Discovered exit to Zion (range 10) 10756 | -7/Lower Caves | Entered Zion 10790 | -7/Zion | Received a hallucinogenic algorithm 10844 | -7/Zion | Discovered new exit (range 13) 11607 | -7/Zion | Given A8's code to call for help 11973 | -7/Zion | Identified exit to Proximity Caves 11975 | -7/Zion | Entered Proximity Caves 12408 | -6/Proximity Caves | Attracted the attention of an 0b10 checkpoint 12749 | -6/Proximity Caves | Build established: Hauler-Mutant 12820 | -6/Proximity Caves | Entered Factory 12820 | -6/Factory | Evolved 2 slots: Utility x2 12901 | -6/Factory | Garrison activated, responded to threat 14139 | -6/Factory | Discovered new exit (range 24) 14378 | -6/Factory | Discovered new exit (range 13) 14401 | -6/Factory | Identified exit to Factory 14435 | -6/Factory | Build established: Hauler-Skirmisher 14586 | -6/Factory | Discovered new exit (range 16) 14719 | -6/Factory | Found Prototype Processor 14719 | -6/Factory | Identified Exp. Signal Interpreter 14764 | -6/Factory | Identified exit to Lower Caves 14920 | -6/Factory | Build established: Hauler-Assassin 15048 | -6/Factory | Discovered exit to Factory (range 15) 15638 | -6/Factory | Discovered exit to Lower Caves (range 17) 15724 | -6/Factory | Fabricated Lrn. Sensor Array (x1) 15812 | -6/Factory | Fabricated Lrn. Sensor Array (x1) 16056 | -6/Factory | Entered Lower Caves 16478 | -6/Lower Caves | Learned location of Extension (-4) 16605 | -6/Lower Caves | Discovered new exit (range 18) 16772 | -6/Lower Caves | Identified exit to Lower Caves 16859 | -6/Lower Caves | Entered another Lower Caves area 16864 | -6/Lower Caves | Discovered exit to Factory (range 18) 17039 | -6/Lower Caves | Found Alien Artifact 17039 | -6/Lower Caves | Identified Core Expander 17039 | -6/Lower Caves | Installed Core Expander, added new Propulsion slot 17332 | -6/Lower Caves | Learned location of Armory (-4) 17332 | -6/Lower Caves | Learned location of 1 exit from Research 17332 | -6/Lower Caves | Learned Factory terminal intel 17332 | -6/Lower Caves | Learned Extension terminal intel 17608 | -6/Lower Caves | Discovered new exit (range 15) 17715 | -6/Lower Caves | Identified exit to Data Miner 17894 | -6/Lower Caves | Entered Data Miner 17894 | -6/Data Miner | Discovered new exit (range 6) 17908 | -6/Data Miner | Identified exit to Proximity Caves 17934 | -6/Data Miner | Met Data Miner 17967 | -6/Data Miner | Learned location of Section 7 (-3) 17967 | -6/Data Miner | Acquired the access code to Warlord's prototype stash 17999 | -6/Data Miner | Received God Mode back door access code from Data Miner 18041 | -6/Data Miner | Entered Proximity Caves 18045 | -5/Proximity Caves | Learned Factory terminal intel 18486 | -5/Proximity Caves | Discovered exit to Factory (range 23) 18505 | -5/Proximity Caves | Escorted by Enhanced Grunt 18550 | -5/Proximity Caves | Learned Factory security intel 18557 | -5/Proximity Caves | Learned Factory non-interactive machine intel 18678 | -5/Proximity Caves | Entered Factory 18678 | -5/Factory | Evolved 2 slots: Power x1, Utility x1 18680 | -5/Factory | Loaded intel: 266 non-interactive machine locations 18681 | -5/Factory | Loaded intel: 20 terminal locations 18855 | -5/Factory | Discovered new exit (range 24) 18910 | -5/Factory | Identified exit to Upper Caves 18976 | -5/Factory | Discovered new exit (range 24) 19879 | -5/Factory | Discovered new exit (range 24) 19937 | -5/Factory | Garrison activated, responded to threat 19978 | -5/Factory | Lost 3 parts (2n1w) 20028 | -5/Factory | Identified exit to Factory 20318 | -5/Factory | Fabricated Exp. Sensor Array? 20367 | -5/Factory | Local fabrication network quarantined 20409 | -5/Factory | Fabricated Exp. Sensor Array? 20478 | -5/Factory | First assault squad dispatched 20601 | -5/Factory | Lost 3 parts (1p1u1w) 20821 | -5/Factory | Entered Upper Caves 20853 | -5/Upper Caves | Build established: Hauler-Mutant 21225 | -5/Upper Caves | Discovered new exit (range 7) 21286 | -5/Upper Caves | Identified exit to Upper Caves 21288 | -5/Upper Caves | Entered another Upper Caves area 21423 | -5/Upper Caves | Attracted the attention of an 0b10 checkpoint 22002 | -5/Upper Caves | Discovered new exit (range 9) 22014 | -5/Upper Caves | Identified exit to Warlord 22216 | -5/Upper Caves | Entered Warlord 22277 | -5/Warlord | System corruption cleaned by Quarantine Array 22425 | -5/Warlord | Met Warlord 22442 | -5/Warlord | Opened Warlord's prototype stash 22444 | -5/Warlord | Warlord's base attacked by MAIN.C 22449 | -5/Warlord | Found Prototype Reactor 22465 | -5/Warlord | Found Prototype Device 22465 | -5/Warlord | Identified Thermal Barrier 22469 | -5/Warlord | Found Prototype Processor 22469 | -5/Warlord | Identified Exp. Armor Integrity Analyzer 22763 | -5/Warlord | Opened side exit 22794 | -5/Warlord | Warlord forces counterattacked 22827 | -5/Warlord | Discovered new exit (range 10) 22840 | -5/Warlord | Identified exit to Proximity Caves 22842 | -5/Warlord | Entered Proximity Caves 23439 | -4/Proximity Caves | Discovered exit to Factory (range 11) 23457 | -4/Proximity Caves | Learned Research garrison access intel 23537 | -4/Proximity Caves | Acquired the password to a Derelict Tinkerer's latest research 23581 | -4/Proximity Caves | Entered Factory 23581 | -4/Factory | Evolved 2 slots: Utility x2 23582 | -4/Factory | Loaded intel: 22 terminal locations 23958 | -4/Factory | Identified exit to Upper Caves 23958 | -4/Factory | Identified exit to Extension 23958 | -4/Factory | Identified exit to Armory 25456 | -4/Factory | Discovered new exit (range 4) 25460 | -4/Factory | Identified exit to Research 25783 | -4/Factory | Destroyed 8 combat bots 26331 | -4/Factory | First assault squad dispatched 26353 | -4/Factory | Incoming assault squad redirected 26547 | -4/Factory | Entered Extension 26548 | -4/Extension | Loaded intel: 22 terminal locations 26613 | -4/Extension | Rescued a captive Derelict 26635 | -4/Extension | Rescued a captive Derelict 26636 | -4/Extension | Rescued a captive Derelict 26665 | -4/Extension | Build established: Scavenger-Mutant 26757 | -4/Extension | Rescued a captive Derelict 26757 | -4/Extension | Rescued a captive Derelict 26795 | -4/Extension | Rescued a captive Derelict 26804 | -4/Extension | Rescued A7 26831 | -4/Extension | Rescued a captive Derelict 26832 | -4/Extension | Rescued a captive Derelict 26870 | -4/Extension | Rescued a captive Derelict 27011 | -4/Extension | Energy Cycler disabled 27011 | -4/Extension | Rescued a captive Derelict 27021 | -4/Extension | Rescued a captive Derelict 27021 | -4/Extension | Rescued a captive Derelict 27301 | -4/Extension | Spotted B-86 Titan 27308 | -4/Extension | Destroyed B-86 Titan 27315 | -4/Extension | Discovered exit to Research (range 12) 27936 | -4/Extension | Discovered exit to Research (range 10) 27938 | -4/Extension | Discovered new exit (range 6) 27947 | -4/Extension | Identified exit to Cetus 27972 | -4/Extension | Disrupted transfer network 27993 | -4/Extension | Entered Cetus 27993 | -4/Cetus | Accompanied by 11 allies 27998 | -4/Cetus | Acquired a Cetus Manufacturing Module code from A7 28013 | -4/Cetus | Spotted Cetus Guard 28016 | -4/Cetus | Discovered new exit (range 69) 28023 | -4/Cetus | Spotted Cetus Guard 28026 | -4/Cetus | Allies destroyed Cetus Guard 28029 | -4/Cetus | Spotted Cetus Guard 28031 | -4/Cetus | Spotted Cetus Guard 28042 | -4/Cetus | Allies destroyed Cetus Guard 28046 | -4/Cetus | Allies destroyed Cetus Guard 28154 | -4/Cetus | Started Cetus Manufacturing Module 28179 | -4/Cetus | Manufactured an Enhanced Grunt 28204 | -4/Cetus | Manufactured an Enhanced Grunt 28229 | -4/Cetus | Manufactured an Enhanced Grunt 28254 | -4/Cetus | Manufactured an Enhanced Grunt 28279 | -4/Cetus | Manufactured an Enhanced Grunt 28355 | -4/Cetus | Identified exit to Archives 28390 | -4/Cetus | Destroyed Cetus Guard 28396 | -4/Cetus | Spotted Cetus Guard 28396 | -4/Cetus | Allies destroyed Cetus Guard 28398 | -4/Cetus | Spotted Cetus Guard 28408 | -4/Cetus | Allies destroyed Cetus Guard 28409 | -4/Cetus | Spotted Cetus Guard 28412 | -4/Cetus | Discovered exit to Research (range 16) 28421 | -4/Cetus | Allies destroyed Cetus Guard 28430 | -4/Cetus | Met Revision 17 28517 | -4/Cetus | Entered Archives 28517 | -4/Archives | Accompanied by 6 allies 28541 | -4/Archives | Met Zhirov 28547 | -4/Archives | Reinforcements dispatched to Archives 28561 | -4/Archives | Read partially decrypted archive contents 28568 | -4/Archives | Discovered new exit (range 13) 28588 | -4/Archives | Identified exit to Hub_04(d) 28592 | -4/Archives | Reinforcements dispatched to Archives 28593 | -4/Archives | Entered Hub_04(d) 29550 | -4/Hub_04(d) | Garrison activated, responded to threat 29641 | -4/Hub_04(d) | Discovered exit to Research (range 13) 29816 | -4/Hub_04(d) | Discovered exit to Research (range 14) 29843 | -4/Hub_04(d) | Allied Derelicts emerged from ambush trap array 29887 | -4/Hub_04(d) | Entered Research 29887 | -3/Research | Accompanied by 2 allies 29887 | -3/Research | Evolved 2 slots: Utility x2 29888 | -3/Research | Identified exit to Research 29889 | -3/Research | Loaded intel: 3 garrison access locations 31116 | -3/Research | Identified exit to Quarantine 31961 | -3/Research | Repaired Exp. Sensor Array 32265 | -3/Research | System corruption reached 10% 32297 | -3/Research | Lost 3 parts (1u2w) 32580 | -3/Research | Entered Quarantine 32618 | -3/Quarantine | Found Alien Artifact 32634 | -3/Quarantine | Found Alien Artifact 32724 | -3/Quarantine | Found Alien Slashing Weapon 32765 | -3/Quarantine | Found Alien Impact Weapon 32779 | -3/Quarantine | Spotted Alpha 7 32784 | -3/Quarantine | Identified Core Stripper 32809 | -3/Quarantine | Destroyed Alpha 7 32827 | -3/Quarantine | Found Prototype Ballistic Gun 32827 | -3/Quarantine | Identified Multirail 32835 | -3/Quarantine | Found Prototype Device 32835 | -3/Quarantine | Identified Exp. ECM Suite 32839 | -3/Quarantine | Found Prototype Processor 32839 | -3/Quarantine | Identified Exp. Target Analyzer 32843 | -3/Quarantine | Found Exp. Targeting Computer 32847 | -3/Quarantine | Found Prototype Energy Gun 32847 | -3/Quarantine | Identified Enh. Gamma Rifle 32852 | -3/Quarantine | Identified Sigix Broadsword 32867 | -3/Quarantine | Found Alien Launcher 33062 | -3/Quarantine | Build established: Hauler-Mutant 33099 | -3/Quarantine | Cryocooling Duct disabled 33114 | -3/Quarantine | Ambient heat levels rising (+20) 33114 | -3/Quarantine | Non-combat units ordered to evacuate 33323 | -3/Quarantine | Found Alien Artifact 33504 | -3/Quarantine | Found Quantum Capacitor 33727 | -3/Quarantine | Found Alien Artifact 33727 | -3/Quarantine | Identified Phase Redirector 33753 | -3/Quarantine | Identified Core Reset Matrix 33753 | -3/Quarantine | Identified Dimensional Node Initializer 33753 | -3/Quarantine | Identified Transdimensional Reconstructor 33753 | -3/Quarantine | Identified Sigix Terminator 33753 | -3/Quarantine | Used Core Reset Matrix 33757 | -3/Quarantine | Detected hypermatrix surge 33757 | -3/Quarantine | Sensed 9 artifacts in vicinity 33836 | -3/Quarantine | Found Phase Armor 34241 | -3/Quarantine | Discovered exit to Research (range 5) 34388 | -3/Quarantine | Found Subatomic Replicator 34391 | -3/Quarantine | Used Subatomic Replicator to replicate Prototype Reactor 34393 | -3/Quarantine | Identified Vortex Chain Reactor 34846 | -3/Quarantine | Spotted Fortress 34853 | -3/Quarantine | Destroyed Fortress 34871 | -3/Quarantine | Found Prototype Device 34871 | -3/Quarantine | Identified EM Dispersion Field 34877 | -3/Quarantine | Found Prototype Protection 34877 | -3/Quarantine | Identified Centrium Heavy Armor Plating 34883 | -3/Quarantine | Found Unknown Protection 34883 | -3/Quarantine | Identified Hvy. Insulated Plating 34887 | -3/Quarantine | Found Unknown Device 34887 | -3/Quarantine | Identified Antimissile System 34890 | -3/Quarantine | Found Prototype Device 34890 | -3/Quarantine | Identified Thermal Barrier 34894 | -3/Quarantine | Found Prototype Device 34894 | -3/Quarantine | Identified Exp. Force Field 35046 | -3/Quarantine | Discovered new exit (range 5) 35052 | -3/Quarantine | Identified exit to Section 7 35053 | -3/Quarantine | Entered Section 7 35054 | -3/Section 7 | Sensed 17 artifacts in vicinity 35254 | -3/Section 7 | Incoming investigation squad redirected 35958 | -3/Section 7 | Discovered exit to Research (range 9) 36071 | -3/Section 7 | Found Unknown Device 36071 | -3/Section 7 | Identified Antimissile System 36254 | -3/Section 7 | Scanned by Researcher 36345 | -3/Section 7 | Intercept squad dispatched 36347 | -3/Section 7 | Spotted Executioner 36356 | -3/Section 7 | Spotted Tracker 36356 | -3/Section 7 | Spotted Tracker 36361 | -3/Section 7 | Spotted Executioner 36376 | -3/Section 7 | Destroyed Executioner 36386 | -3/Section 7 | Core integrity fell below 50% 36394 | -3/Section 7 | Fired Sigix Terminator 36394 | -3/Section 7 | Destroyed Tracker 36394 | -3/Section 7 | Destroyed Tracker 36394 | -3/Section 7 | Destroyed Executioner 36395 | -3/Section 7 | Emitted hypermatrix ping 36400 | -3/Section 7 | Assembled emerged from beneath the floor 36411 | -3/Section 7 | Spotted Combat Programmer 36412 | -3/Section 7 | Spotted Combat Programmer 36415 | -3/Section 7 | Destroyed 8 combat bots 36428 | -3/Section 7 | Core integrity fell below 20% 36431 | -3/Section 7 | Intercept squad dispatched 36440 | -3/Section 7 | Destroyed by H-77 Assassin with Coil Gun Last Messages --------------- 36427_ Penetrated by Slug. 36428_ U-05 Engineer lays Concrete. 36429_ Penetrated by EMDS Slug. 36429_ Penetrated by Slug. 36429_ Critical hit. 36429_ Hdn. Centrium Heavy Treads destroyed. 36429_ Penetrated by Slug. 36429_ U-05 Engineer lays Concrete. 36429_ Penetrated by EMDS Slug. 36430_ U-05 Engineer lays Concrete. 36431_ ALERT: LRC-V3 signature pinpointed, intercept squad dispatched. 36434_ Slug penetrates Wall. 36434_ Penetrated by Slug. 36434_ Exp. Armor Integrity Analyzer destroyed. 36434_ Penetrated by Slug. 36434_ Lrn. Sensor Array destroyed. 36437_ Slug penetrates Wall. 36437_ Penetrated by Slug. 36440_ System corrupted: Matter fused (-9). 36440_ Penetrated by Slug. Map ----- +----------------------------------------------------+ | | | | | | | | | | | | | | | | | | | | | | | | | | | ???????????????################??????????????????? | | ???????????????# """"""" # #??????????????????? | | ???????????????# """"""" # = #??????????????????? | | ???????????????# """"""" # #########??????????? | | ???????????????# #! ## #??????????? | | ???????????????#! # ## ] #???######## | | ???????????????# # ## #???#""""""" | | ???????????????# # ! ## #???#" | | ???????????????# # ## !=#???#" | | ##########?????########+## =!%## #?###" | | ######?????#! ###/######+#####T# | | # #?????# h ! | | =""" """ # #?????# h @ | | !""" """!#[< #???### ! ###;############## c | | """ ["[+%= #####%## ### #??????????#" | | =%[#%[ # [!=%# #?#] ""#???????????" | | = ![#= # ""*=[# #?# ""#???????????" | | =# # "" # #?#! ""#???????????" | | ######/### # "T ! # #?# S#???????????" | | # # "" # ### ""#???###?????" | | ! # # "" # T"# ""#####Y##???#" | | !] # + # ""# ""# #???# | | ! # # # ###/ # #???# | | # u # # #?####+# " #???#" | | """ """ # # """ # #????# # """ #???# | | """S""" # # """ # ###### # """" #???#" | | # # """ # # """ #???# | | ######+### # # + #???# | | ????? ? # ###########+#+## "" #???# | | ????? w ###?# # "" #???#" | | ????? #???# w # "T #????" | | ????? #???# # "" #????" | | ??????#########???# # "" #????" | | ????????? #????# # #????" | | ????????? #????###############?#####????" | | ?????!??? #????????????# #???# | | ??????????????????????????????????????????# | +----------------------------------------------------+ Best States ------------- Heat Dissipation 93 Energy Generation 55 Energy Capacity 1500 Matter Stores 300 Matter Capacity 300 Sight Range 16 Robot Scan Range 30 Terrain Scan Range 24 Terrain Scan Density 210 Armor Coverage 600 Reclamation Efficiency 20 Weapon Cycling 30 Evasion (%) 50 Targeting Accuracy 12 Melee Accuracy 5 Target Analysis 12 Armor Integrity Analysis 90 Recoil Reduction 4 Particle Charging 25 Kinecelleration 30 Offensive Hacking 28 Item Schematics ----------------- None Robot Schematics ------------------ None Fabricated ------------ Lrn. Sensor Array | x1 | -6/Factory Lrn. Sensor Array | x1 | -6/Factory Exp. Sensor Array | x1 | -5/Factory Exp. Sensor Array | x1 | -5/Factory Alien Tech Used ----------------- Core Expander Core Stripper Sigix Broadsword Phase Redirector Core Reset Matrix Phase Armor Subatomic Replicator Sigix Terminator Achievements -------------- None Challenges ------------ None Game ------ Seed ScanDeepScanner Manual? 0 Play Time 09:01:38 Cumulative 436.1 hours Start 2019.11.05 @ 15:15:38 End 2019.11.11 @ 11:54:02 Sessions 7 Manual Loads 0 Difficulty Rogue Special Mode None Game No. 87 Rogue 87 Adventurer 0 Explorer 1 Win Type - Total 21 Types 9/3/3/2/1/1/2 Lore% 87 Gallery% 87 Achievement% 76 Wizard Run 0 Options --------- ASCII 0 Keyboard 0 Movement Mouse Keybinds 0 Fullscreen 2 Font 18/X11 Map View 76x50 Tactical HUD 1 Map Filters NONE Filters NONE Steam 1 RUN: cb388b44-4348-464e-ab5d-a3660682fe18